[Event "17th Spilimbergo Open 2019"]
[Site "Spilimbergo"]
[Date "2019.08.12"]
[Round "6.3"]
[White "Bosiocic, Marin"]
[Black "Sonis, Francesco"]
[Result "1-0"]
[WhiteElo "2611"]
[BlackElo "2459"]
[PlyCount "109"]
[EventDate "2019.08.09"]
[EventType "swiss"]
[EventCountry "ITA"]
[TimeControl "5400+30"]
[WhiteClock "0:04:13"]
[BlackClock "0:26:00"]

1. e4 {[%emt 0:00:30]} e5 {[%emt 0:00:30]} 2. Nf3 {[%emt 0:00:00]} Nc6 {[%emt 0:00:00]} 3. Bb5 {[%emt 0:00:00]} a6 {[%emt 0:00:00]} 4. Ba4 {[%emt 0:00:00]} Nf6 {[%emt 0:00:00]} 5. O-O {[%emt 0:00:00]} b5 {[%emt 0:00:00]} 6. Bb3 {[%emt 0:00:30]} Bb7 {[%emt 0:00:30]} 7. Re1 {[%emt 0:00:30]} Bc5 {[%emt 0:00:00]} 8. c3 {[%emt 0:00:30]} d6 {[%emt 0:00:00]} 9. d4 {[%emt 0:00:30]} Bb6 {[%emt 0:00:00]} 10. a4 {[%emt 0:00:30]} h6 {[%emt 0:03:00]} 11. axb5 {[%emt 0:01:30]} axb5 {[%emt 0:00:30]} 12. Rxa8 {[%emt 0:00:00]} Qxa8 {[%emt 0:01:30]} 13. Na3 {[%emt 0:00:00]} O-O {[%emt 0:02:30]} 14. Nxb5 {[%emt 0:02:30]} exd4 {[%emt 0:00:30]} 15. cxd4 {[%emt 0:01:30]} Na5 {[%emt 0:00:00]} 16. Bc2 {[%emt 0:03:30]} Bxe4 {[%emt 0:03:00]} 17. Bxe4 {[%emt 0:01:30]} Nxe4 {[%emt 0:00:30]} 18. Qc2 {[%emt 0:00:30]} Nf6 {[%emt 0:04:30]} 19. Bd2 {[%emt 0:06:30]} Qd5 {[%emt 0:24:30]} 20. Nxc7 {[%emt 0:09:30]} Qc4 {[%emt 0:00:00]} 21. Qxc4 {[%emt 0:00:30]} Nxc4 {[%emt 0:00:00]} 22. Nb5 {[%emt 0:00:30]} Rb8 {[%emt 0:00:00]} 23. Ra1 {[%emt 0:18:30]} Ba5 {[%emt 0:14:00]} 24. Nxd6 {[%emt 0:09:30]} Nxd2 {[%emt 0:00:00]} 25. Rxa5 {[%emt 0:00:00]} Rxb2 {[%emt 0:00:00]} 26. Nxd2 {[%emt 0:01:00]} Rxd2 {[%emt 0:00:00]} 27. h3 {[%emt 0:02:30]} Rxd4 {[%emt 0:00:00]} 28. Ra8+ {[%emt 0:00:30]} Kh7 {[%emt 0:00:30]} 29. Nxf7 {[%emt 0:00:30]} Rd1+ {[%emt 0:04:30]} 30. Kh2 {[%emt 0:00:00]} Rd2 {[%emt 0:00:30]} 31. f4 {[%emt 0:05:00]} Rf2 {[%emt 0:02:30]} 32. Rh8+ {[%emt 0:06:30]} Kg6 {[%emt 0:00:30]} 33. Ne5+ {[%emt 0:00:30]} Kf5 {[%emt 0:00:00]} 34. Nd3 {[%emt 0:00:00]} Rd2 {[%emt 0:04:00]} 35. Rd8 {[%emt 0:03:00]} g5 {[%emt 0:00:30]} 36. fxg5 {[%emt 0:00:30]} hxg5 {[%emt 0:01:30]} 37. Kg1 {[%emt 0:00:00]} g4 {[%emt 0:02:30]} 38. hxg4+ {[%emt 0:00:00]} Nxg4 {[%emt 0:00:30]} 39. Rf8+ {[%emt 0:00:30]} Ke4 {[%emt 0:04:30]} 40. Rf4+ {[%emt 0:00:00]} Kxd3 {[%emt 0:00:30]} 41. Rxg4 {[%emt 0:00:00]} Ke3 {[%emt 0:11:30]} 42. Kh2 {[%emt 0:00:30]} Rd8 {[%emt 0:03:22]} 43. Kg3 {[%emt 0:01:30]} Rd2 {[%emt 0:06:38]} 44. Kh4 {[%emt 0:03:30]} Rd8 {[%emt 0:01:00]} 45. Rg5 {[%emt 0:02:30]} Rd4+ {[%emt 0:07:23]} 46. Kg3 {[%emt 0:01:30]} Rd2 {[%emt 0:00:36]} 47. Re5+ {[%emt 0:01:30]} Kd4 {[%emt 0:00:02]} 48. Re8 {[%emt 0:00:00]} Ra2 {[%emt 0:00:03]} 49. Kh3 {[%emt 0:00:00]} Ra7 {[%emt 0:00:03]} 50. g4 {[%emt 0:00:30]} Rh7+ {[%emt 0:01:47]} 51. Kg3 {[%emt 0:00:00]} Rg7 {[%emt 0:01:05]} 52. Kh4 {[%emt 0:00:00]} Kd5 {[%emt 0:00:15]} 53. Kh5 {[%emt 0:00:00]} Kd6 {[%emt 0:00:28]} 54. g5 {[%emt 0:00:00]} Kd7 {[%emt 0:00:35]} 55. Re1 1-0

[Event "17th Spilimbergo Open 2019"]
[Site "Spilimbergo"]
[Date "2019.08.12"]
[Round "6.4"]
[White "Godena, Michele"]
[Black "Dragnev, Valentin"]
[Result "0-1"]
[WhiteElo "2469"]
[BlackElo "2535"]
[PlyCount "90"]
[EventDate "2019.08.09"]
[EventType "swiss"]
[EventCountry "ITA"]
[TimeControl "5400+30"]
[WhiteClock "0:01:04"]

1. e4 {[%emt 0:00:30]} e5 {[%emt 0:02:30]} 2. Nf3 {[%emt 0:00:00]} Nc6 {[%emt 0:00:30]} 3. Bc4 {[%emt 0:02:00]} Nf6 {[%emt 0:00:30]} 4. d3 {[%emt 0:01:30]} Bc5 {[%emt 0:00:00]} 5. Nc3 {[%emt 0:00:30]} d6 {[%emt 0:03:00]} 6. Na4 {[%emt 0:03:30]} Bb6 {[%emt 0:03:30]} 7. c3 {[%emt 0:04:30]} h6 {[%emt 0:07:30]} 8. Nxb6 {[%emt 0:04:30]} axb6 {[%emt 0:00:00]} 9. Bb3 {[%emt 0:00:30]} O-O {[%emt 0:00:00]} 10. O-O {[%emt 0:18:30]} Ne7 {[%emt 0:09:30]} 11. Re1 {[%emt 0:21:30]} Ng6 {[%emt 0:01:30]} 12. d4 {[%emt 0:01:30]} Qe7 {[%emt 0:01:30]} 13. Bc2 {[%emt 0:05:30]} Bd7 {[%emt 0:04:30]} 14. a3 {[%emt 0:07:30]} Kh8 {[%emt 0:04:30]} 15. Bd2 {[%emt 0:04:30]} Nh7 {[%emt 0:01:30]} 16. Bd3 {[%emt 0:02:54]} Rae8 {[%emt 0:17:30]} 17. Qe2 {[%emt 0:05:03]} Qd8 {[%emt 0:07:30]} 18. Rad1 {[%emt 0:00:34]} exd4 {[%emt 0:02:30]} 19. Nxd4 {[%emt 0:04:29]} f5 {[%emt 0:01:30]} 20. Qh5 {[%emt 0:02:52]} Ne5 {[%emt 0:00:30]} 21. Qe2 {[%emt 0:02:08]} fxe4 {[%emt 0:06:30]} 22. Bxe4 {[%emt 0:00:32]} Ng4 {[%emt 0:00:30]} 23. f3 {[%emt 0:04:16]} d5 {[%emt 0:01:30]} 24. c4 {[%emt 0:01:04]} dxe4 {[%emt 0:11:39]} 25. fxg4 {[%emt 0:00:01]} Ba4 {[%emt 0:00:37]} 26. Bc3 {[%emt 0:00:10]} Bxd1 {[%emt 0:00:53]} 27. Rxd1 {[%emt 0:00:01]} Qg5 {[%emt 0:03:56]} 28. Nf5 {[%emt 0:00:45]} Nf6 {[%emt 0:01:52]} 29. Rf1 {[%emt 0:01:31]} Kh7 {[%emt 0:00:34]} 30. Ne3 {[%emt 0:00:40]} Nd7 {[%emt 0:00:52]} 31. Nf5 {[%emt 0:00:24]} Nf6 {[%emt 0:03:03]} 32. Ne3 {[%emt 0:00:11]} Kg8 {[%emt 0:01:00]} 33. Rf5 {[%emt 0:01:05]} Qg6 {[%emt 0:00:07]} 34. h3 {[%emt 0:00:44]} Rf7 {[%emt 0:00:58]} 35. c5 {[%emt 0:00:29]} bxc5 {[%emt 0:01:28]} 36. Rxc5 {[%emt 0:00:01]} c6 {[%emt 0:00:18]} 37. Rf5 {[%emt 0:01:27]} Nd5 {[%emt 0:01:08]} 38. Rxf7 {[%emt 0:00:05]} Qxf7 {[%emt 0:00:10]} 39. Nf5 {[%emt 0:00:02]} Nxc3 {[%emt 0:00:26]} 40. bxc3 {[%emt 0:00:01]} Qf6 {[%emt 0:00:44]} 41. Qe3 {[%emt 0:00:29]} Qe5 {[%emt 0:00:04]} 42. Kf2 {[%emt 0:00:56]} Rd8 {[%emt 0:00:16]} 43. Qb6 {[%emt 0:01:20]} Rd2+ {[%emt 0:00:32]} 44. Ke3 {[%emt 0:00:29]} Rd3+ {[%emt 0:01:16]} 45. Ke2 {[%emt 0:00:02]} Qxc3 {[%emt 0:00:19]} 0-1

[Event "17th Spilimbergo Open 2019"]
[Site "Spilimbergo"]
[Date "2019.08.12"]
[Round "6.5"]
[White "Barp, Alberto"]
[Black "Vetoshko, Volodymyr"]
[Result "0-1"]
[WhiteElo "2411"]
[BlackElo "2495"]
[PlyCount "106"]
[EventDate "2019.08.09"]
[EventType "swiss"]
[EventCountry "ITA"]
[TimeControl "5400+30"]
[WhiteClock "0:08:24"]
[BlackClock "0:11:02"]

1. d4 {[%emt 0:00:30]} Nf6 {[%emt 0:01:30]} 2. c4 {[%emt 0:00:00]} e6 {[%emt 0:00:30]} 3. Nf3 {[%emt 0:00:00]} d5 {[%emt 0:00:30]} 4. g3 {[%emt 0:00:00]} Be7 {[%emt 0:00:00]} 5. Bg2 {[%emt 0:00:00]} O-O {[%emt 0:00:00]} 6. Nc3 {[%emt 0:00:30]} dxc4 {[%emt 0:00:30]} 7. Ne5 {[%emt 0:00:30]} Nc6 {[%emt 0:00:30]} 8. Bxc6 {[%emt 0:00:30]} bxc6 {[%emt 0:00:00]} 9. Nxc6 {[%emt 0:00:00]} Qe8 {[%emt 0:00:00]} 10. Nxe7+ {[%emt 0:00:00]} Qxe7 {[%emt 0:00:30]} 11. Qa4 {[%emt 0:00:00]} c5 {[%emt 0:01:30]} 12. dxc5 {[%emt 0:03:00]} Qxc5 {[%emt 0:02:30]} 13. Be3 {[%emt 0:00:00]} Qh5 {[%emt 0:02:30]} 14. f3 {[%emt 0:04:00]} Bb7 {[%emt 0:07:30]} 15. Qb5 {[%emt 0:07:30]} Bxf3 {[%emt 0:04:30]} 16. Qxh5 {[%emt 0:07:30]} Bxh5 {[%emt 0:00:30]} 17. h3 {[%emt 0:04:30]} Nd5 {[%emt 0:05:30]} 18. Nxd5 {[%emt 0:02:30]} exd5 {[%emt 0:00:30]} 19. Bd4 {[%emt 0:00:30]} a5 {[%emt 0:02:30]} 20. Kf2 {[%emt 0:01:30]} a4 {[%emt 0:00:30]} 21. a3 {[%emt 0:00:30]} Rfe8 {[%emt 0:01:30]} 22. Rhe1 {[%emt 0:00:30]} Bg6 {[%emt 0:01:30]} 23. e3 {[%emt 0:03:30]} Rab8 {[%emt 0:00:30]} 24. Rad1 {[%emt 0:03:30]} Be4 {[%emt 0:02:30]} 25. g4 {[%emt 0:19:30]} f6 {[%emt 0:08:30]} 26. Kg3 {[%emt 0:02:30]} Kf7 {[%emt 0:11:30]} 27. Rf1 {[%emt 0:01:30]} h6 {[%emt 0:04:30]} 28. Rf2 {[%emt 0:01:30]} Re6 {[%emt 0:03:30]} 29. h4 {[%emt 0:03:30]} Rbe8 {[%emt 0:02:30]} 30. g5 {[%emt 0:03:30]} f5 {[%emt 0:06:30]} 31. Rg1 {[%emt 0:03:30]} hxg5 {[%emt 0:06:30]} 32. hxg5 {[%emt 0:00:30]} Rg6 {[%emt 0:00:30]} 33. Kf4 {[%emt 0:01:30]} Rh8 {[%emt 0:00:30]} 34. Ke5 {[%emt 0:04:30]} Re6+ {[%emt 0:01:30]} 35. Kf4 {[%emt 0:00:30]} Rh4+ {[%emt 0:03:30]} 36. Kg3 {[%emt 0:01:30]} Rg4+ {[%emt 0:00:30]} 37. Kh2 {[%emt 0:00:30]} Rxg1 {[%emt 0:00:30]} 38. Kxg1 {[%emt 0:00:30]} Rg6 {[%emt 0:00:00]} 39. Rh2 {[%emt 0:00:30]} Rxg5+ {[%emt 0:00:00]} 40. Kf1 {[%emt 0:00:00]} Kg8 {[%emt 0:02:03]} 41. Ke1 {[%emt 0:01:00]} Rg3 {[%emt 0:02:12]} 42. Ke2 {[%emt 0:06:30]} Rg4 {[%emt 0:03:22]} 43. Kd2 {[%emt 0:03:06]} Rg1 {[%emt 0:02:19]} 44. Kc3 {[%emt 0:01:30]} Rd1 {[%emt 0:02:13]} 45. Rd2 {[%emt 0:02:02]} Re1 {[%emt 0:00:07]} 46. Kb4 {[%emt 0:03:59]} g5 {[%emt 0:00:06]} 47. Kxa4 {[%emt 0:00:00]} g4 {[%emt 0:00:06]} 48. Kb5 {[%emt 0:00:04]} g3 {[%emt 0:00:46]} 49. a4 {[%emt 0:00:03]} g2 {[%emt 0:00:24]} 50. Rxg2+ {[%emt 0:00:03]} Bxg2 {[%emt 0:00:04]} 51. a5 {[%emt 0:00:03]} Bf1 {[%emt 0:04:01]} 52. Kb6 {[%emt 0:00:29]} c3 {[%emt 0:01:23]} 53. Bxc3 {[%emt 0:00:09]} Rxe3 0-1

[Event "17th Spilimbergo Open 2019"]
[Site "Spilimbergo"]
[Date "2019.08.12"]
[Round "6.6"]
[White "Henderson de La Fuente, Lance"]
[Black "Skembris, Spyridon"]
[Result "1/2-1/2"]
[WhiteElo "2487"]
[BlackElo "2413"]
[PlyCount "67"]
[EventDate "2019.08.09"]
[EventType "swiss"]
[EventCountry "ITA"]
[TimeControl "5400+30"]
[WhiteClock "0:34:00"]
[BlackClock "0:29:00"]

1. e4 {[%emt 0:00:30]} c5 {[%emt 0:00:30]} 2. Nf3 {[%emt 0:00:00]} Nc6 {[%emt 0:00:30]} 3. d4 {[%emt 0:00:00]} cxd4 {[%emt 0:00:00]} 4. Nxd4 {[%emt 0:00:30]} g6 {[%emt 0:00:00]} 5. c4 {[%emt 0:00:30]} Bg7 {[%emt 0:00:30]} 6. Be3 {[%emt 0:00:00]} Nf6 {[%emt 0:00:00]} 7. Nc3 {[%emt 0:00:00]} O-O {[%emt 0:00:00]} 8. Be2 {[%emt 0:00:30]} b6 {[%emt 0:00:30]} 9. f3 {[%emt 0:00:30]} Bb7 {[%emt 0:00:30]} 10. Qd2 {[%emt 0:00:30]} Rc8 {[%emt 0:01:30]} 11. O-O-O {[%emt 0:00:30]} Na5 {[%emt 0:03:30]} 12. b3 {[%emt 0:00:30]} d6 {[%emt 0:05:30]} 13. Kb1 {[%emt 0:00:30]} Nc6 {[%emt 0:02:30]} 14. g4 {[%emt 0:01:30]} a6 {[%emt 0:02:30]} 15. h4 {[%emt 0:03:30]} Nd7 {[%emt 0:01:30]} 16. h5 {[%emt 0:03:30]} Nxd4 {[%emt 0:02:30]} 17. Bxd4 {[%emt 0:00:00]} Bxd4 {[%emt 0:01:30]} 18. Qxd4 {[%emt 0:00:00]} Nc5 {[%emt 0:00:30]} 19. Nd5 {[%emt 0:00:30]} f6 {[%emt 0:00:30]} 20. h6 {[%emt 0:00:30]} g5 {[%emt 0:07:30]} 21. b4 {[%emt 0:19:30]} Nd7 {[%emt 0:03:30]} 22. Rhg1 {[%emt 0:16:30]} Rf7 {[%emt 0:05:30]} 23. f4 {[%emt 0:06:30]} gxf4 {[%emt 0:14:30]} 24. g5 {[%emt 0:01:30]} e5 {[%emt 0:01:30]} 25. Qf2 {[%emt 0:02:30]} fxg5 {[%emt 0:07:30]} 26. Bh5 {[%emt 0:04:30]} Bxd5 {[%emt 0:01:30]} 27. cxd5 {[%emt 0:01:30]} Rf6 {[%emt 0:02:30]} 28. Rxg5+ {[%emt 0:01:30]} Kh8 {[%emt 0:00:00]} 29. Rdg1 {[%emt 0:02:30]} Rxh6 {[%emt 0:01:00]} 30. Bf7 {[%emt 0:01:30]} Nf6 {[%emt 0:00:30]} 31. Qg2 {[%emt 0:00:30]} Qf8 {[%emt 0:01:30]} 32. Be6 {[%emt 0:02:30]} Rb8 {[%emt 0:00:00]} 33. Kc1 {[%emt 0:02:30]} Rh5 {[%emt 0:01:00]} 34. Rg7 1/2-1/2

[Event "17th Spilimbergo Open 2019"]
[Site "Spilimbergo"]
[Date "2019.08.12"]
[Round "6.7"]
[White "Sardana, Rishi"]
[Black "Petrov, Martin"]
[Result "1-0"]
[WhiteElo "2410"]
[BlackElo "2477"]
[PlyCount "87"]
[EventDate "2019.08.09"]
[EventType "swiss"]
[EventCountry "ITA"]
[TimeControl "5400+30"]
[WhiteClock "0:10:09"]
[BlackClock "0:24:00"]

1. e4 {[%emt 0:00:30]} c5 {[%emt 0:00:30]} 2. Nf3 {[%emt 0:00:00]} d6 {[%emt 0:00:00]} 3. Bb5+ {[%emt 0:00:00]} Bd7 {[%emt 0:01:00]} 4. Bxd7+ {[%emt 0:00:00]} Qxd7 {[%emt 0:00:30]} 5. c4 {[%emt 0:00:00]} Nf6 {[%emt 0:00:30]} 6. Nc3 {[%emt 0:00:30]} g6 {[%emt 0:00:30]} 7. d4 {[%emt 0:00:00]} cxd4 {[%emt 0:00:00]} 8. Nxd4 {[%emt 0:00:00]} Bg7 {[%emt 0:00:00]} 9. f3 {[%emt 0:00:00]} O-O {[%emt 0:00:30]} 10. Be3 {[%emt 0:00:00]} Nc6 {[%emt 0:03:30]} 11. O-O {[%emt 0:00:30]} Rac8 {[%emt 0:00:30]} 12. b3 {[%emt 0:00:00]} a6 {[%emt 0:01:30]} 13. Qd3 {[%emt 0:01:00]} e6 {[%emt 0:13:30]} 14. Rac1 {[%emt 0:01:30]} Qe7 {[%emt 0:13:30]} 15. Rfd1 {[%emt 0:15:30]} d5 {[%emt 0:11:30]} 16. Nxc6 {[%emt 0:07:30]} bxc6 {[%emt 0:00:30]} 17. e5 {[%emt 0:05:30]} Nd7 {[%emt 0:01:30]} 18. f4 {[%emt 0:00:00]} f6 {[%emt 0:04:30]} 19. cxd5 {[%emt 0:05:00]} exd5 {[%emt 0:16:30]} 20. Nxd5 {[%emt 0:05:30]} cxd5 {[%emt 0:01:30]} 21. Qxd5+ {[%emt 0:00:00]} Kh8 {[%emt 0:00:00]} 22. Rxc8 {[%emt 0:02:00]} Rxc8 {[%emt 0:00:00]} 23. Qxd7 {[%emt 0:00:30]} Qxd7 {[%emt 0:00:30]} 24. Rxd7 {[%emt 0:00:30]} fxe5 {[%emt 0:00:00]} 25. fxe5 {[%emt 0:02:30]} Bxe5 {[%emt 0:00:00]} 26. Rd5 {[%emt 0:08:30]} Ba1 {[%emt 0:02:30]} 27. Kf2 {[%emt 0:01:30]} Kg8 {[%emt 0:01:30]} 28. Kf3 {[%emt 0:05:30]} Rc2 {[%emt 0:03:30]} 29. Rd2 {[%emt 0:02:30]} Rc7 {[%emt 0:02:30]} 30. Rd8+ {[%emt 0:04:30]} Kf7 {[%emt 0:00:30]} 31. Rd6 {[%emt 0:00:30]} a5 {[%emt 0:02:30]} 32. Ra6 {[%emt 0:00:00]} Rc2 {[%emt 0:04:24]} 33. Rxa5 {[%emt 0:01:00]} h5 {[%emt 0:00:03]} 34. a4 {[%emt 0:01:30]} Ke6 {[%emt 0:02:07]} 35. Rg5 {[%emt 0:06:30]} Kf6 {[%emt 0:01:15]} 36. Rc5 {[%emt 0:00:30]} Ra2 {[%emt 0:00:13]} 37. h3 {[%emt 0:01:30]} Ra3 {[%emt 0:01:49]} 38. Rb5 {[%emt 0:00:30]} Bc3 {[%emt 0:00:17]} 39. Ke4 {[%emt 0:00:30]} Ke6 {[%emt 0:01:30]} 40. g4 {[%emt 0:01:30]} h4 {[%emt 0:00:32]} 41. Bf2 {[%emt 0:01:30]} g5 {[%emt 0:00:41]} 42. Be3 {[%emt 0:00:30]} Bf6 {[%emt 0:02:54]} 43. Rb6+ {[%emt 0:00:30]} Kf7 {[%emt 0:00:06]} 44. Kf5 1-0

[Event "17th Spilimbergo Open 2019"]
[Site "Spilimbergo"]
[Date "2019.08.12"]
[Round "6.8"]
[White "Solomon, Kenny"]
[Black "Palac, Mladen"]
[Result "0-1"]
[WhiteElo "2373"]
[BlackElo "2551"]
[PlyCount "92"]
[EventDate "2019.08.09"]
[EventType "swiss"]
[EventCountry "ITA"]
[TimeControl "5400+30"]
[WhiteClock "0:14:17"]

1. d4 {[%emt 0:00:30]} Nf6 {[%emt 0:02:30]} 2. c4 {[%emt 0:00:00]} e6 {[%emt 0:00:30]} 3. Nf3 {[%emt 0:00:00]} d5 {[%emt 0:00:00]} 4. Nc3 {[%emt 0:00:30]} c6 {[%emt 0:00:00]} 5. Bg5 {[%emt 0:01:30]} h6 {[%emt 0:00:00]} 6. Bxf6 {[%emt 0:00:30]} Qxf6 {[%emt 0:00:00]} 7. e3 {[%emt 0:00:30]} g6 {[%emt 0:00:00]} 8. Qc2 {[%emt 0:00:30]} Nd7 {[%emt 0:00:00]} 9. Rd1 {[%emt 0:04:30]} Bg7 {[%emt 0:01:30]} 10. Be2 {[%emt 0:04:30]} O-O {[%emt 0:00:00]} 11. O-O {[%emt 0:00:30]} dxc4 {[%emt 0:19:00]} 12. Bxc4 {[%emt 0:01:30]} b6 {[%emt 0:00:00]} 13. Rfe1 {[%emt 0:09:30]} Bb7 {[%emt 0:01:00]} 14. e4 {[%emt 0:02:30]} b5 {[%emt 0:19:30]} 15. Bb3 {[%emt 0:12:30]} a6 {[%emt 0:03:30]} 16. a4 {[%emt 0:02:30]} Rac8 {[%emt 0:09:30]} 17. Qe2 {[%emt 0:18:30]} Qe7 {[%emt 0:01:30]} 18. Ba2 {[%emt 0:10:30]} b4 {[%emt 0:01:30]} 19. Nb1 {[%emt 0:00:30]} c5 {[%emt 0:00:00]} 20. a5 {[%emt 0:19:33]} cxd4 {[%emt 0:02:00]} 21. Nxd4 {[%emt 0:00:01]} Nc5 {[%emt 0:00:30]} 22. e5 {[%emt 0:01:37]} Rfd8 {[%emt 0:00:30]} 23. Bc4 {[%emt 0:01:24]} Qc7 {[%emt 0:01:30]} 24. b3 {[%emt 0:00:55]} Qxa5 {[%emt 0:01:30]} 25. h4 {[%emt 0:00:50]} Qb6 {[%emt 0:01:30]} 26. Qe3 {[%emt 0:01:26]} Rd7 {[%emt 0:05:30]} 27. Ne2 {[%emt 0:04:20]} Qd8 {[%emt 0:07:30]} 28. Rxd7 {[%emt 0:00:34]} Nxd7 {[%emt 0:00:30]} 29. Rd1 {[%emt 0:00:23]} Qc7 {[%emt 0:00:30]} 30. f4 {[%emt 0:01:08]} Nb6 {[%emt 0:00:30]} 31. h5 {[%emt 0:01:01]} Nxc4 {[%emt 0:05:22]} 32. bxc4 {[%emt 0:00:37]} Qxc4 {[%emt 0:00:30]} 33. hxg6 {[%emt 0:00:12]} fxg6 {[%emt 0:04:21]} 34. Rc1 {[%emt 0:01:29]} Qd5 35. Rxc8+ Bxc8 36. Nd2 a5 37. Nf3 Bb7 38. Kh2 Qc4 39. Nh4 g5 40. Nf3 gxf4 41. Nxf4 Bxf3 42. gxf3 b3 43. Kg3 Qb5 44. Qc3 Qxe5 45. Qc8+ Kh7 46. Qc1 Qf5 0-1

[Event "17th Spilimbergo Open 2019"]
[Site "Spilimbergo"]
[Date "2019.08.12"]
[Round "6.9"]
[White "Miron, Lucian-Costin"]
[Black "Di Benedetto, Edoardo"]
[Result "1/2-1/2"]
[WhiteElo "2494"]
[BlackElo "2399"]
[PlyCount "45"]
[EventDate "2019.08.09"]
[EventType "swiss"]
[EventCountry "ITA"]
[TimeControl "5400+30"]
[WhiteClock "1:14:00"]
[BlackClock "0:36:00"]

1. d4 {[%emt 0:06:30]} d5 {[%emt 0:00:30]} 2. c4 {[%emt 0:00:00]} e6 {[%emt 0:00:00]} 3. Nc3 {[%emt 0:00:00]} Be7 {[%emt 0:00:00]} 4. cxd5 {[%emt 0:00:30]} exd5 {[%emt 0:00:30]} 5. Bf4 {[%emt 0:00:00]} c6 {[%emt 0:00:00]} 6. e3 {[%emt 0:00:00]} Bd6 {[%emt 0:00:00]} 7. Bxd6 {[%emt 0:01:30]} Qxd6 {[%emt 0:00:00]} 8. Bd3 {[%emt 0:00:00]} Ne7 {[%emt 0:00:00]} 9. Qc2 {[%emt 0:01:00]} b6 {[%emt 0:00:30]} 10. Nf3 {[%emt 0:02:30]} Ba6 {[%emt 0:00:00]} 11. O-O {[%emt 0:08:30]} Bxd3 {[%emt 0:00:00]} 12. Qxd3 {[%emt 0:00:00]} O-O {[%emt 0:00:30]} 13. e4 {[%emt 0:12:00]} dxe4 {[%emt 0:00:30]} 14. Qxe4 {[%emt 0:00:00]} Nd7 {[%emt 0:00:30]} 15. Rfe1 {[%emt 0:01:00]} Rfe8 {[%emt 0:03:30]} 16. Rac1 {[%emt 0:05:30]} Nf6 {[%emt 0:01:30]} 17. Qc2 {[%emt 0:00:30]} Ng6 {[%emt 0:01:30]} 18. Ne4 {[%emt 0:12:30]} Nxe4 {[%emt 0:00:30]} 19. Rxe4 {[%emt 0:00:00]} Rxe4 {[%emt 0:02:30]} 20. Qxe4 {[%emt 0:00:00]} Rc8 {[%emt 0:00:30]} 21. g3 {[%emt 0:04:30]} f6 {[%emt 0:09:30]} 22. a3 {[%emt 0:08:30]} Qd7 {[%emt 0:04:30]} 23. h4 1/2-1/2

[Event "17th Spilimbergo Open 2019"]
[Site "Spilimbergo"]
[Date "2019.08.12"]
[Round "6.10"]
[White "Veinberg, Nimrod"]
[Black "Yankelevich, Lev"]
[Result "1-0"]
[WhiteElo "2394"]
[BlackElo "2480"]
[PlyCount "123"]
[EventDate "2019.08.09"]
[EventType "swiss"]
[EventCountry "ITA"]
[TimeControl "5400+30"]
[WhiteClock "0:36:00"]
[BlackClock "0:11:52"]

1. d4 {[%emt 0:00:30]} Nf6 {[%emt 0:07:30]} 2. c4 {[%emt 0:00:00]} g6 {[%emt 0:00:30]} 3. Nc3 {[%emt 0:00:00]} Bg7 {[%emt 0:00:00]} 4. e4 {[%emt 0:00:00]} d6 {[%emt 0:00:00]} 5. f3 {[%emt 0:00:00]} O-O {[%emt 0:00:30]} 6. Be3 {[%emt 0:00:30]} a6 {[%emt 0:00:00]} 7. Qd2 {[%emt 0:00:30]} Nc6 {[%emt 0:00:00]} 8. Nge2 {[%emt 0:00:30]} Bd7 {[%emt 0:00:00]} 9. Rb1 {[%emt 0:00:30]} b5 {[%emt 0:17:00]} 10. cxb5 {[%emt 0:02:30]} axb5 {[%emt 0:00:30]} 11. Nxb5 {[%emt 0:01:30]} Rxa2 {[%emt 0:04:30]} 12. Na3 {[%emt 0:02:30]} Qa8 {[%emt 0:02:30]} 13. Nc3 {[%emt 0:02:30]} Rxa3 {[%emt 0:00:00]} 14. bxa3 {[%emt 0:00:00]} e5 {[%emt 0:01:00]} 15. d5 {[%emt 0:04:00]} Nd4 {[%emt 0:00:30]} 16. Qb2 {[%emt 0:07:30]} Qa7 {[%emt 0:03:30]} 17. Bf2 {[%emt 0:02:30]} Nh5 {[%emt 0:01:30]} 18. Bc4 {[%emt 0:09:30]} Qc5 {[%emt 0:02:30]} 19. Qa2 {[%emt 0:00:30]} Qa5 {[%emt 0:05:30]} 20. Rb4 {[%emt 0:05:30]} c5 {[%emt 0:00:30]} 21. dxc6 {[%emt 0:00:30]} Nxc6 {[%emt 0:00:30]} 22. Rb3 {[%emt 0:04:30]} Nd4 {[%emt 0:00:30]} 23. Rb4 {[%emt 0:00:30]} Nc6 {[%emt 0:00:00]} 24. Rb3 {[%emt 0:11:30]} Nd4 {[%emt 0:00:00]} 25. O-O {[%emt 0:01:30]} Nxb3 {[%emt 0:00:30]} 26. Qxb3 {[%emt 0:00:30]} Nf4 {[%emt 0:01:30]} 27. Bb6 {[%emt 0:04:30]} Qa8 {[%emt 0:00:00]} 28. a4 {[%emt 0:02:30]} Be6 {[%emt 0:00:00]} 29. Nd5 {[%emt 0:03:30]} Nxd5 {[%emt 0:02:30]} 30. exd5 {[%emt 0:00:30]} Bc8 {[%emt 0:00:30]} 31. Qb5 {[%emt 0:00:30]} Bf6 {[%emt 0:00:30]} 32. a5 {[%emt 0:02:30]} Bd8 {[%emt 0:00:30]} 33. Qc6 {[%emt 0:10:30]} Bb7 {[%emt 0:01:30]} 34. Qxd6 {[%emt 0:00:00]} Bxb6+ {[%emt 0:00:30]} 35. Qxb6 {[%emt 0:02:00]} Bxd5 {[%emt 0:00:00]} 36. Bxd5 {[%emt 0:00:30]} Qxd5 {[%emt 0:00:00]} 37. a6 {[%emt 0:01:30]} Ra8 {[%emt 0:00:30]} 38. a7 {[%emt 0:00:30]} Kg7 {[%emt 0:02:30]} 39. Ra1 {[%emt 0:00:31]} h5 {[%emt 0:01:30]} 40. h3 {[%emt 0:00:33]} h4 {[%emt 0:00:30]} 41. Ra6 {[%emt 0:01:56]} Qd1+ {[%emt 0:03:30]} 42. Kh2 {[%emt 0:00:01]} Qe1 {[%emt 0:00:30]} 43. Qf6+ {[%emt 0:00:13]} Kh6 {[%emt 0:00:00]} 44. Qb6 {[%emt 0:02:29]} Kg7 {[%emt 0:03:00]} 45. Qg1 {[%emt 0:01:02]} Qd2 {[%emt 0:01:30]} 46. Ra4 {[%emt 0:00:19]} g5 {[%emt 0:00:30]} 47. Qc5 {[%emt 0:01:59]} Qd7 {[%emt 0:02:30]} 48. Qxe5+ {[%emt 0:00:42]} f6 {[%emt 0:00:00]} 49. Qa1 {[%emt 0:00:12]} Kh7 {[%emt 0:02:00]} 50. Ra6 {[%emt 0:01:04]} Qc7+ {[%emt 0:01:30]} 51. Kh1 {[%emt 0:00:03]} Qe7 {[%emt 0:00:30]} 52. Qb1+ {[%emt 0:01:02]} Kg7 {[%emt 0:00:00]} 53. Qb8 {[%emt 0:00:24]} Qe1+ {[%emt 0:01:00]} 54. Kh2 {[%emt 0:00:30]} Kg6 {[%emt 0:00:00]} 55. Qc7 {[%emt 0:01:51]} Qf2 {[%emt 0:02:00]} 56. Qe5 {[%emt 0:00:58]} Kh5 {[%emt 0:00:30]} 57. Qe4 {[%emt 0:02:25]} Qg3+ {[%emt 0:01:30]} 58. Kh1 {[%emt 0:00:03]} Qc7 {[%emt 0:00:30]} 59. Rxf6 {[%emt 0:00:59]} Qc1+ {[%emt 0:00:30]} 60. Kh2 {[%emt 0:00:07]} Qc7+ {[%emt 0:00:30]} 61. f4 {[%emt 0:00:15]} Qb7 {[%emt 0:00:30]} 62. Qg6# 1-0